fUSD/lending_fUSD_20250826
["ID","MTS","AMOUNT","RATE_DAILY","PERIOD"]
[381479202,1756230674268,-611.11,0.00027397,5]
[381479203,1756230674278,-400.0,0.00027397,5]
[381479204,1756230674289,-682.58,0.00027397,5]
[381479205,1756230674299,-400.0,0.00027397,5]
[381479206,1756230674309,-682.08,0.00027397,5]
[381479207,1756230674319,-151.0,0.00027397,7]
[381479208,1756230674330,-151.0,0.00027397,7]
[381479209,1756230674340,-151.0,0.00027397,7]
[381479210,1756230674350,-1988.35,0.00027397,5]
[381479211,1756230674361,-507.58,0.00027397,5]
[381479212,1756230674372,-400.11109624,0.00027397,5]
[381479213,1756230674382,-151.0,0.00027397,7]
[381479214,1756230674392,-707.77,0.00027397,5]
[381479215,1756230674403,-248.840196,0.00027397,7]
[381479216,1756230674413,-151.0,0.00027397,7]
[381479217,1756230674428,-151.0,0.00027397,7]
[381479218,1756230674438,-248.840196,0.00027397,7]
[381479219,1756230674449,-500.0,0.00027397,5]
[381479220,1756230674459,-245.589621,0.00027397,7]
[381479221,1756230674469,-151.0,0.00027397,7]
[381479222,1756230674479,-492.45,0.00027397,7]
[381479223,1756230674490,-163.124851,0.00027397,7]
[381479224,1756230674500,-248.840196,0.00027397,7]
[381479225,1756230674510,-671.23,0.00027397,5]
[381479226,1756230674520,-492.45,0.00027397,7]
[381479227,1756230674531,-400.0,0.00027397,5]
[381479228,1756230674543,-400.0,0.00027397,5]
[381479229,1756230674553,-163.124851,0.00027397,7]
[381479230,1756230674563,-248.840196,0.00027397,7]
[381479231,1756230674573,-414.02,0.00027397,5]
[381479232,1756230674583,-715.665839,0.00027397,7]
[381479233,1756230674594,-492.45,0.00027397,7]
[381479234,1756230674867,-163.124851,0.00027397,7]
[381479235,1756230674877,-1108.22,0.00027397,5]
[381479236,1756230674889,-620.36,0.00027397,5]
[381479237,1756230674898,-715.665839,0.00027397,7]
[381479238,1756230674910,-492.45,0.00027397,7]
[381479239,1756230674921,-163.124851,0.00027397,7]
[381479240,1756230674931,-1696.44,0.00027397,5]
[381479241,1756230674941,-674.7,0.00027397,5]
[381479242,1756230674952,-715.665839,0.00027397,7]
[381479243,1756230674961,-400.0,0.00027397,5]
[381479244,1756230674970,-304.087752,0.00027397,7]
[381479245,1756230674982,-715.665839,0.00027397,7]
[381479246,1756230674992,-1262.19,0.00027397,5]
[381479247,1756230675003,-304.087752,0.00027397,7]
[381479248,1756230675014,-400.0,0.00027397,5]
[381479249,1756230675025,-501.45478859,0.00027397,5]
[381479250,1756230675036,-304.087752,0.00027397,7]
[381479251,1756230675046,-994.58,0.00027397,5]
[381479252,1756230675056,-400.0,0.00027397,5]
[381479253,1756230675066,-1451.77,0.00027397,5]
[381479254,1756230675075,-838.64,0.00027397,5]
[381479255,1756230675085,-400.0,0.00027397,5]
[381479256,1756230675096,-400.0,0.00027397,5]
[381479257,1756230675106,-304.087752,0.00027397,7]
[381479258,1756230675116,-318.427936,0.00027397,7]
[381479259,1756230675125,-400.0,0.00027397,5]
[381479260,1756230675135,-224.588692,0.00027397,7]
[381479261,1756230675144,-318.427936,0.00027397,7]
[381479262,1756230675153,-1320.14,0.00027397,5]
[381479263,1756230675163,-224.588692,0.00027397,7]
[381479264,1756230675173,-400.0,0.00027397,5]
[381479265,1756230675183,-1171.83,0.00027397,5]
[381479266,1756230675192,-318.427936,0.00027397,7]
[381479267,1756230675202,-1229.77,0.00027397,5]
[381479268,1756230675211,-400.0,0.00027397,5]
[381479269,1756230675220,-224.588692,0.00027397,7]
[381479270,1756230675230,-318.427936,0.00027397,7]
[381479271,1756230675239,-400.0,0.00027397,5]
[381479272,1756230675249,-224.588692,0.00027397,7]
[381479273,1756230675259,-1055.35,0.00027397,5]
[381479274,1756230675269,-400.0,0.00027397,5]
[381479275,1756230675279,-400.0,0.00027397,5]
[381479276,1756230675289,-490.51,0.00027397,5]
[381479277,1756230675298,-451.3,0.00027397,5]
[381479278,1756230675308,-654.35,0.00027397,5]
[381479279,1756230675318,-400.0,0.00027397,5]
[381479280,1756230675327,-1305.09,0.00027397,5]
[381479281,1756230675337,-400.0,0.00027397,5]
[381479282,1756230675346,-400.0,0.00027397,5]
[381479283,1756230675355,-400.0,0.00027397,5]
[381479284,1756230675365,-715.4,0.00027397,5]
[381479285,1756230675375,-1150.93,0.00027397,5]
[381479286,1756230675384,-486.06,0.00027397,5]
[381479287,1756230675394,-177.892108,0.00027397,7]
[381479288,1756230675403,-1447.76,0.00027397,5]
[381479289,1756230675414,-1190.31,0.00027397,5]
[381479290,1756230675423,-177.892108,0.00027397,7]
[381479291,1756230675433,-400.0,0.00027397,5]
[381479292,1756230675444,-400.0,0.00027397,5]
[381479293,1756230675454,-177.892108,0.00027397,7]
[381479294,1756230675463,-524.69051863,0.00027397,5]
[381479295,1756230675475,-177.892108,0.00027397,7]
[381479296,1756230675484,-1053.64,0.00027397,5]
[381479297,1756230675494,-400.0,0.00027397,5]
[381479298,1756230675505,-400.0,0.00027397,5]
[381479299,1756230675516,-1314.02,0.00027397,5]
[381479300,1756230675525,-400.0,0.00027397,5]
[381479301,1756230675534,-151.0,0.00027397,7]
[381479302,1756230675543,-400.0,0.00027397,5]
[381479303,1756230675554,-737.44,0.00027397,5]
[381479304,1756230675563,-151.0,0.00027397,7]
[381479305,1756230675573,-1021.234396,0.00027397,7]
[381479306,1756230675583,-710.08,0.00027397,5]
[381479307,1756230675592,-151.0,0.00027397,7]
[381479308,1756230675602,-1021.234396,0.00027397,7]
[381479309,1756230675611,-867.06,0.00027397,5]
[381479310,1756230675621,-400.0,0.00027397,5]
[381479311,1756230675631,-400.0,0.00027397,5]
[381479312,1756230675640,-2794.66,0.00027397,5]
[381479313,1756230675655,-1021.234396,0.00027397,7]
[381479314,1756230675665,-518.85,0.00027397,5]
[381479315,1756230675675,-151.0,0.00027397,7]
[381479316,1756230675686,-831.22,0.00027397,5]
[381479317,1756230675696,-522.78,0.00027397,5]
[381479318,1756230675707,-1021.234396,0.00027397,7]
[381479319,1756230675717,-450.510635,0.00027397,7]
[381479320,1756230675727,-1002.86,0.00027397,5]
[381479321,1756230675738,-450.510635,0.00027397,7]
[381479322,1756230675747,-966.97,0.00027397,5]
[381479323,1756230675757,-400.0,0.00027397,5]
[381479324,1756230675766,-151.0,0.00027397,7]
[381479325,1756230675776,-500.0,0.00027397,5]
[381479326,1756230675785,-253.63852181,0.00027397,5]
[381479327,1756230675795,-450.510635,0.00027397,7]
[381479328,1756230675804,-506.44,0.00027397,5]
[381479329,1756230675815,-450.510635,0.00027397,7]
[381479330,1756230675824,-777.45,0.00027397,5]
[381479331,1756230675833,-400.0,0.00027397,5]
[381479332,1756230675843,-151.0,0.00027397,7]
[381479333,1756230675853,-415.74,0.00027397,5]
[381479334,1756230675862,-728.92,0.00027397,5]
[381479335,1756230675871,-222.560891,0.00027397,7]
[381479336,1756230675883,-1380.42,0.00027397,5]
[381479337,1756230675894,-400.0,0.00027397,5]
[381479338,1756230675903,-1382.78,0.00027397,5]
[381479339,1756230675912,-1552.27,0.00027397,5]
[381479340,1756230675921,-400.44210722,0.00027397,5]
[381479341,1756230675931,-222.560891,0.00027397,7]
[381479342,1756230675940,-411.47,0.00027397,5]
[381479343,1756230675949,-878.37,0.00027397,5]
[381479344,1756230675958,-501.21427448,0.00027397,5]
[381479345,1756230675968,-400.0,0.00027397,5]
[381479346,1756230675977,-1109.68,0.00027397,5]
[381479347,1756230675987,-222.560891,0.00027397,7]
[381479348,1756230675996,-772.05,0.00027397,5]
[381479349,1756230676007,-151.0,0.00027397,7]
[381479350,1756230676016,-650.21,0.00027397,5]
[381479351,1756230676025,-1195.33,0.00027397,5]
[381479352,1756230676035,-222.560891,0.00027397,7]
[381479353,1756230676043,-3396.04,0.00027397,5]
[381479354,1756230676052,-400.0,0.00027397,5]
[381479355,1756230676061,-524.42,0.00027397,5]
[381479356,1756230676070,-400.0,0.00027397,5]
[381479357,1756230676080,-663.26,0.00027397,5]
[381479358,1756230676089,-219.632907,0.00027397,7]
[381479359,1756230676098,-400.0,0.00027397,5]
[381479360,1756230676107,-400.0,0.00027397,5]
[381479361,1756230676116,-400.0,0.00027397,5]
[381479362,1756230676125,-400.0,0.00027397,5]
[381479363,1756230676134,-219.632907,0.00027397,7]
[381479364,1756230676143,-1440.116939,0.00027397,7]
[381479365,1756230676153,-219.632907,0.00027397,7]
[381479366,1756230676162,-979.78,0.00027397,5]
[381479367,1756230676172,-400.21341728,0.00027397,5]
[381479368,1756230676183,-1440.116939,0.00027397,7]
[381479369,1756230676192,-400.81796741,0.00027397,5]
[381479370,1756230676201,-219.632907,0.00027397,7]
[381479371,1756230676210,-151.0,0.00027397,7]
[381479372,1756230676220,-773.75,0.00027397,5]
[381479373,1756230676230,-936.41,0.00027397,5]
[381479374,1756230676239,-1440.116939,0.00027397,7]
[381479375,1756230676248,-669.79,0.00027397,5]
[381479376,1756230676259,-1622.1,0.00027397,5]
[381479377,1756230676269,-1440.116939,0.00027397,7]
[381479378,1756230676278,-406.22,0.00027397,5]
[381479379,1756230676287,-400.0,0.00027397,5]
[381479380,1756230676297,-901.22,0.00027397,5]
[381479381,1756230676306,-1367.67,0.00027397,5]
[381479382,1756230676316,-400.0,0.00027397,5]
[381479383,1756230676325,-742.95,0.00027397,5]
[381479384,1756230676335,-400.0,0.00027397,5]
[381479385,1756230676344,-400.0,0.00027397,5]
[381479386,1756230676354,-503.842562,0.00027397,7]
[381479387,1756230676363,-400.0,0.00027397,5]
[381479388,1756230676373,-400.0,0.00027397,5]
[381479389,1756230676382,-909.97,0.00027397,5]
[381479390,1756230676392,-400.0,0.00027397,5]
[381479391,1756230676401,-503.842562,0.00027397,7]
[381479392,1756230676411,-400.0,0.00027397,5]
[381479393,1756230676421,-1346.04,0.00027397,5]
[381479394,1756230676431,-297.202624,0.00027397,7]
[381479395,1756230676441,-400.0,0.00027397,5]
[381479396,1756230676450,-503.842562,0.00027397,7]
[381479397,1756230676460,-151.0,0.00027397,7]
[381479398,1756230676471,-530.73,0.00027397,5]
[381479399,1756230676480,-400.0,0.00027397,5]
[381479400,1756230676490,-503.842562,0.00027397,7]
[381479401,1756230676501,-1159.55,0.00027397,5]
[381479402,1756230676510,-151.0,0.00027397,7]
[381479403,1756230676520,-400.0,0.00027397,5]
[381479404,1756230676530,-400.0,0.00027397,5]
[381479405,1756230676540,-1144.5,0.00027397,5]
[381479406,1756230676550,-400.0,0.00027397,5]
[381479407,1756230676560,-957.94,0.00027397,5]
[381479408,1756230676572,-1349.87,0.00027397,5]
[381479409,1756230676582,-400.0,0.00027397,5]
[381479410,1756230676593,-400.0,0.00027397,5]
[381479411,1756230676603,-400.0,0.00027397,5]
[381479412,1756230676613,-746.51,0.00027397,5]
[381479413,1756230676624,-646.69,0.00027397,5]
[381479414,1756230676634,-400.0,0.00027397,5]
[381479415,1756230676644,-400.0,0.00027397,5]
[381479416,1756230676658,-1218.8,0.00027397,5]
[381479417,1756230676668,-400.0,0.00027397,5]
[381479418,1756230676679,-400.0,0.00027397,5]
[381479419,1756230676689,-803.65,0.00027397,5]
[381479420,1756230676700,-400.0,0.00027397,5]
[381479421,1756230676712,-400.0,0.00027397,5]
[381479422,1756230676722,-400.0,0.00027397,5]
[381479423,1756230676734,-486.65,0.00027397,5]
[381479424,1756230676746,-802.89,0.00027397,5]
[381479425,1756230676756,-1750.37,0.00027397,5]
[381479426,1756230676768,-473.57,0.00027397,5]
[381479427,1756230676779,-400.41819482,0.00027397,5]
[381479428,1756230676791,-151.0,0.00027397,7]
[381479429,1756230676810,-595.5,0.00027397,5]
[381479430,1756230676830,-400.0,0.00027397,5]
[381479431,1756230676849,-1034.18,0.00027397,5]
[381479432,1756230676870,-400.0,0.00027397,5]
[381479433,1756230676888,-3322.0,0.00027397,5]
[381479434,1756230676907,-584.57,0.00027397,5]
[381479435,1756230676929,-400.0,0.00027397,5]
[381479436,1756230676946,-400.0,0.00027397,5]
[381479437,1756230676966,-458.84,0.00027397,5]
[381479438,1756230676983,-567.64,0.00027397,5]
[381479439,1756230677004,-1068.12,0.00027397,5]
[381479440,1756230677019,-1292.44,0.00027397,5]
[381479441,1756230677036,-1261.88,0.00027397,5]
[381479442,1756230677050,-679.23,0.00027397,5]
[381479443,1756230677065,-1264.571645,0.00027397,7]
[381479444,1756230677083,-151.0,0.00027397,7]
[381479445,1756230677098,-1264.571645,0.00027397,7]
[381479446,1756230677114,-400.0,0.00027397,5]
[381479447,1756230677129,-552.16711988,0.00027397,5]
[381479448,1756230677145,-400.0,0.00027397,5]
[381479449,1756230677160,-1264.571645,0.00027397,7]
[381479450,1756230677176,-400.0,0.00027397,5]
[381479451,1756230677191,-1122.85,0.00027397,5]
[381479452,1756230677206,-404.2085028,0.00027397,5]
[381479453,1756230677221,-400.0,0.00027397,5]
[381479454,1756230677236,-1264.571645,0.00027397,7]
[381479455,1756230677252,-151.0,0.00027397,7]
[381479456,1756230677268,-151.0,0.00027397,2]
[381479457,1756230677283,-400.0,0.00027397,5]
[381479458,1756230677298,-400.0,0.00027397,5]
[381479459,1756230677312,-400.0,0.00027397,5]
[381479460,1756230677327,-400.0,0.00027397,5]
[381479461,1756230677342,-736.74,0.00027397,5]
[381479462,1756230677357,-151.0,0.00027397,7]
[381479463,1756230677373,-849.73,0.00027397,5]
[381479464,1756230677389,-400.0,0.00027397,5]
[381479465,1756230677405,-598.7,0.00027397,5]
[381479466,1756230677419,-400.0,0.00027397,5]
[381479467,1756230677434,-939.5,0.00027397,5]
[381479468,1756230677448,-443.51581,0.00027397,7]
[381479469,1756230677463,-500.0,0.00027397,5]
[381479470,1756230677476,-500.0,0.00027397,5]
[381479471,1756230677491,-400.0,0.00027397,5]
[381479472,1756230677505,-500.0,0.00027397,5]
[381479473,1756230677521,-500.0,0.00027397,5]
[381479474,1756230677537,-443.51581,0.00027397,7]
[381479475,1756230677552,-507.47744747,0.00027397,5]
[381479476,1756230677568,-400.0,0.00027397,5]
[381479477,1756230677584,-151.0,0.00027397,7]
[381479478,1756230677599,-443.51581,0.00027397,7]
[381479479,1756230677613,-151.0,0.00027397,7]
[381479480,1756230677628,-1491.81,0.00027397,5]
[381479481,1756230677644,-208.420936,0.00027397,7]
[381479482,1756230677661,-750.42,0.00027397,5]
[381479483,1756230677675,-151.0,0.00027397,7]
[381479484,1756230677691,-443.51581,0.00027397,7]
[381479485,1756230677708,-500.0,0.00027397,5]
[381479486,1756230677724,-151.0,0.00027397,7]
[381479487,1756230677748,-500.0,0.00027397,5]
[381479488,1756230677763,-400.0,0.00027397,5]
[381479489,1756230677777,-500.0,0.00027397,5]
[381479490,1756230677792,-500.0,0.00027397,5]
[381479491,1756230677808,-500.0,0.00027397,5]
[381479492,1756230677823,-151.0,0.00027397,7]
[381479493,1756230677837,-208.420936,0.00027397,7]
[381479494,1756230677852,-500.0,0.00027397,5]
[381479495,1756230677867,-632.76,0.00027397,5]
[381479496,1756230677883,-500.0,0.00027397,5]
[381479497,1756230677898,-463.02,0.00027397,5]
[381479498,1756230677914,-500.0,0.00027397,5]
[381479499,1756230677931,-400.0,0.00027397,5]
[381479500,1756230677946,-400.0,0.00027397,5]
[381479501,1756230677960,-364.210035,0.00027397,7]
[381479502,1756230677976,-500.0,0.00027397,5]
[381479503,1756230677991,-151.0,0.00027397,7]
[381479504,1756230678006,-208.420936,0.00027397,7]
[381479505,1756230678022,-151.0,0.00027397,7]
[381479506,1756230678037,-500.0,0.00027397,5]
[381479507,1756230678052,-400.0,0.00027397,5]
[381479508,1756230678068,-500.0,0.00027397,5]
[381479509,1756230678083,-400.0,0.00027397,5]
[381479510,1756230678098,-500.0,0.00027397,5]
[381479511,1756230678113,-364.210035,0.00027397,7]
[381479512,1756230678129,-500.0,0.00027397,5]
[381479513,1756230678145,-1105.29,0.00027397,5]
[381479514,1756230678162,-500.0,0.00027397,5]
[381479515,1756230678179,-400.0,0.00027397,5]
[381479516,1756230678199,-500.0,0.00027397,5]
[381479517,1756230678217,-151.0,0.00027397,7]
[381479518,1756230678235,-500.0,0.00027397,5]
[381479519,1756230678254,-151.0,0.00027397,7]
[381479520,1756230678271,-208.420936,0.00027397,7]
[381479521,1756230678286,-500.0,0.00027397,5]
[381479522,1756230678303,-500.0,0.00027397,5]
[381479523,1756230678318,-400.0,0.00027397,5]
[381479524,1756230678335,-500.0,0.00027397,5]
[381479525,1756230678351,-364.210035,0.00027397,7]
[381479526,1756230678367,-500.0,0.00027397,5]
[381479527,1756230678381,-500.0,0.00027397,5]
[381479528,1756230678397,-537.9,0.00027397,5]
[381479529,1756230678413,-440.45366637,0.00027397,5]
[381479530,1756230678429,-400.0,0.00027397,5]
[381479531,1756230678446,-416.7,0.00027397,5]
[381479532,1756230678461,-364.210035,0.00027397,7]
[381479533,1756230678477,-1698.63,0.00027397,5]
[381479534,1756230678493,-400.0,0.00027397,5]
[381479535,1756230678508,-400.0,0.00027397,5]
[381479536,1756230678523,-517.03,0.00027397,5]
[381479537,1756230678538,-400.0,0.00027397,5]
[381479538,1756230678552,-400.0,0.00027397,5]
[381479539,1756230678567,-151.0,0.00027397,7]
[381479540,1756230678582,-1111.68,0.00027397,5]
[381479541,1756230678597,-531.53,0.00027397,5]
[381479542,1756230678613,-1203.47,0.00027397,5]
[381479543,1756230678627,-1302.16,0.00027397,5]
[381479544,1756230678643,-1324.35,0.00027397,5]
[381479545,1756230678661,-400.0,0.00027397,5]
[381479546,1756230678676,-712.36,0.00027397,5]
[381479547,1756230678692,-400.0,0.00027397,5]
[381479548,1756230678707,-400.0,0.00027397,5]
[381479549,1756230678723,-1094.27,0.00027397,5]
[381479550,1756230678739,-400.0,0.00027397,5]
[381479551,1756230678754,-353.95967102,0.00027397,5]
[381479552,1756230678769,-1369.04,0.00027397,5]
[381479553,1756230678792,-816.57,0.00027397,5]
[381479554,1756230678808,-1171.55,0.00027397,5]
[381479555,1756230678822,-694.38,0.00027397,5]
[381479556,1756230678837,-400.0,0.00027397,5]
[381479557,1756230678852,-293.796465,0.00027397,7]
[381479558,1756230678867,-400.0,0.00027397,5]
[381479559,1756230678882,-636.59,0.00027397,5]
[381479560,1756230678897,-400.0,0.00027397,5]
[381479561,1756230678912,-151.0,0.00027397,7]
[381479562,1756230678927,-293.796465,0.00027397,7]
[381479563,1756230678944,-748.0,0.00027397,5]
[381479564,1756230678959,-318.549235,0.00027397,7]
[381479565,1756230678974,-674.36,0.00027397,5]
[381479566,1756230678990,-293.796465,0.00027397,7]
[381479567,1756230679005,-318.549235,0.00027397,7]
[381479568,1756230679020,-400.0,0.00027397,5]
[381479569,1756230679035,-737.97,0.00027397,5]
[381479570,1756230679050,-293.796465,0.00027397,7]
[381479571,1756230679065,-524.59010865,0.00027397,5]
[381479572,1756230679080,-637.3,0.00027397,5]
[381479573,1756230679095,-400.0,0.00027397,5]
[381479574,1756230679109,-318.549235,0.00027397,7]
[381479575,1756230679122,-408.13,0.00027397,5]
[381479576,1756230679137,-174.616709,0.00027397,7]
[381479577,1756230679152,-400.0,0.00027397,5]
[381479578,1756230679166,-1267.69,0.00027397,5]
[381479579,1756230679180,-2696.16,0.00027397,5]
[381479580,1756230679197,-151.0,0.00027397,7]
[381479581,1756230679212,-318.549235,0.00027397,7]
[381479582,1756230679227,-174.616709,0.00027397,7]
[381479583,1756230679242,-400.0,0.00027397,5]
[381479584,1756230679256,-1342.91,0.00027397,5]
[381479585,1756230679271,-400.0,0.00027397,5]
[381479586,1756230679293,-719.93,0.00027397,5]
[381479587,1756230679310,-1012.86,0.00027397,5]
[381479588,1756230679324,-400.0,0.00027397,5]
[381479589,1756230679340,-715.27,0.00027397,5]
[381479590,1756230679356,-174.616709,0.00027397,7]
[381479591,1756230679370,-1920.87,0.00027397,5]
[381479592,1756230679383,-754.15,0.00027397,5]
[381479593,1756230679400,-667.39,0.00027397,5]
[381479594,1756230679414,-428.43371861,0.00027397,5]
[381479595,1756230679428,-787.87,0.00027397,5]
[381479596,1756230679445,-1759.81,0.00027397,5]
[381479597,1756230679461,-400.0,0.00027397,5]
[381479598,1756230679476,-174.616709,0.00027397,7]
[381479599,1756230679490,-400.0,0.00027397,5]
[381479600,1756230679504,-400.89979671,0.00027397,5]
[381479601,1756230679520,-1291.3,0.00027397,5]
[381479602,1756230679535,-400.0,0.00027397,5]
[381479603,1756230679550,-400.0,0.00027397,5]
[381479604,1756230679565,-400.0,0.00027397,5]
[381479605,1756230679580,-1556.21,0.00027397,5]
[381479606,1756230679597,-576.82,0.00027397,5]
[381479607,1756230679613,-401.89354543,0.00027397,5]
[381479608,1756230679629,-400.0,0.00027397,5]
[381479609,1756230679645,-436.07183747,0.00027397,5]
[381479610,1756230679660,-400.0,0.00027397,5]
[381479611,1756230679675,-400.0,0.00027397,5]
[381479612,1756230679690,-400.0,0.00027397,5]
[381479613,1756230679706,-165.649435,0.00027397,7]
[381479614,1756230679719,-5113.05,0.00027397,5]
[381479615,1756230679728,-400.0,0.00027397,5]
[381479616,1756230679737,-400.0,0.00027397,5]
[381479617,1756230679746,-400.0,0.00027397,5]
[381479618,1756230679755,-705.33,0.00027397,5]
[381479619,1756230679765,-654.53,0.00027397,5]
[381479620,1756230679774,-165.649435,0.00027397,7]
[381479621,1756230679783,-400.0,0.00027397,5]
[381479622,1756230679795,-1041.63,0.00027397,5]
[381479623,1756230679804,-425.77,0.00027397,5]
[381479624,1756230679813,-1209.1,0.00027397,5]
[381479625,1756230679823,-165.649435,0.00027397,7]
[381479626,1756230680379,-1000.0,0.00027397,5]
[381479627,1756230680412,-613.44,0.00027397,5]
[381479628,1756230680448,-400.0,0.00027397,5]
[381479629,1756230680467,-1479.47,0.00027397,5]
[381479630,1756230680476,-165.649435,0.00027397,7]
[381479631,1756230680485,-400.0,0.00027397,5]
[381479632,1756230680495,-400.0,0.00027397,5]
[381479633,1756230680504,-400.0,0.00027397,5]
[381479634,1756230680513,-400.0,0.00027397,5]
[381479635,1756230680522,-1317.24,0.00027397,5]
[381479636,1756230680531,-151.0,0.00027397,7]
[381479637,1756230680540,-762.16,0.00027397,5]
[381479638,1756230680549,-960.79,0.00027397,5]
[381479639,1756230680559,-400.0,0.00027397,5]
[381479640,1756230680568,-151.0,0.00027397,7]
[381479641,1756230680577,-400.0,0.00027397,5]
[381479642,1756230680586,-1235.69,0.00027397,5]
[381479643,1756230680595,-400.0,0.00027397,5]
[381479644,1756230680604,-1303.22,0.00027397,5]
[381479645,1756230680614,-1171.13,0.00027397,5]
[381479646,1756230680623,-151.0,0.00027397,7]
[381479647,1756230680632,-630.41,0.00027397,5]
[381479648,1756230680641,-1512.33,0.00027397,5]
[381479649,1756230680652,-400.0,0.00027397,5]
[381479650,1756230680662,-386.34,0.00027397,5]
[381479651,1756230680671,-400.0,0.00027397,5]
[381479652,1756230680681,-1422.53,0.00027397,5]
[381479653,1756230680691,-856.1,0.00027397,5]
[381479654,1756230680701,-400.0,0.00027397,5]
[381479655,1756230680712,-792.6,0.00027397,5]
[381479656,1756230680722,-1403.76,0.00027397,5]
[381479657,1756230680731,-471.44,0.00027397,5]
[381479658,1756230680740,-1073.32,0.00027397,5]
[381479659,1756230680749,-400.0,0.00027397,5]
[381479660,1756230680759,-400.0,0.00027397,5]
[381479661,1756230680768,-1007.77,0.00027397,5]
[381479662,1756230680778,-357.829217,0.00027397,7]
[381479663,1756230680787,-400.0,0.00027397,5]
[381479664,1756230680796,-1420.21,0.00027397,5]
[381479665,1756230680806,-400.0,0.00027397,5]
[381479666,1756230680816,-952.45,0.00027397,5]
[381479667,1756230680827,-400.0,0.00027397,5]
[381479668,1756230680836,-491.6,0.00027397,5]
[381479669,1756230680846,-1598.099305,0.00027397,7]
[381479670,1756230680855,-1084.48,0.00027397,5]
[381479671,1756230680864,-357.829217,0.00027397,7]
[381479672,1756230680873,-2280.32,0.00027397,5]
[381479673,1756230680883,-400.0,0.00027397,5]
[381479674,1756230680892,-1335.11,0.00027397,5]
[381479675,1756230680902,-1598.099305,0.00027397,7]
[381479676,1756230680911,-400.0,0.00027397,5]
[381479677,1756230680921,-1191.78,0.00027397,5]
[381479678,1756230680930,-357.829217,0.00027397,7]
[381479679,1756230680941,-400.0,0.00027397,5]
[381479680,1756230680950,-1238.64,0.00027397,5]
[381479681,1756230680960,-1124.09,0.00027397,5]
[381479682,1756230680970,-400.0,0.00027397,5]
[381479683,1756230680979,-1598.099305,0.00027397,7]
[381479684,1756230680990,-1253.31,0.00027397,5]
[381479685,1756230681000,-400.0,0.00027397,5]
[381479686,1756230681010,-195.588872,0.00027397,7]
[381479687,1756230681019,-1325.68,0.00027397,5]
[381479688,1756230681028,-570.489081,0.00027397,7]
[381479689,1756230681037,-1598.099305,0.00027397,7]
[381479690,1756230681046,-195.588872,0.00027397,7]
[381479691,1756230681056,-938.22,0.00027397,5]
[381479692,1756230681066,-570.489081,0.00027397,7]
[381479693,1756230681075,-601.51,0.00027397,5]
[381479694,1756230681084,-499.47,0.00027397,5]
[381479695,1756230681094,-500.0,0.00027397,5]
[381479696,1756230681104,-357.829217,0.00027397,7]
[381479697,1756230681113,-190.628852,0.00027397,7]
[381479698,1756230681122,-195.588872,0.00027397,7]
[381479699,1756230681131,-570.489081,0.00027397,7]
[381479700,1756230681141,-400.0,0.00027397,5]
[381479701,1756230681150,-400.0,0.00027397,5]